[Event "*** Titled Tuesday Blitz"]
[Site "Chess.com"]
[Date "2020.05.05"]
[Round "6"]
[White "hansen"]
[Black "giantslayer83"]
[Result "0-1"]
[WhiteElo "2930"]
[BlackElo "2715"]
[TimeControl "180+1"]
[EndTime "11:07:34 PDT"]
[Termination "giantslayer83 won on time"]

1. Nf3 {[%clk 0:02:59.4]} 1... d5 {[%clk 0:02:59.6]} 2. g3 {[%clk 0:02:59.7]}
2... g6 {[%clk 0:02:59.6]} 3. Bg2 {[%clk 0:03:00.2]} 3... Bg7 {[%clk 0:03:00.1]}
4. O-O {[%clk 0:03:01.1]} 4... e5 {[%clk 0:02:59.8]} 5. d3 {[%clk 0:03:01.7]}
5... Ne7 {[%clk 0:02:59.9]} 6. e4 {[%clk 0:03:01.9]} 6... Nbc6 {[%clk
0:02:59.8]} 7. exd5 {[%clk 0:02:59.8]} 7... Nxd5 {[%clk 0:03:00.7]} 8. Re1
{[%clk 0:03:00.2]} 8... O-O {[%clk 0:03:00.5]} 9. Nc3 {[%clk 0:02:57.9]} 9...
Nde7 {[%clk 0:02:39.4]} 10. Rb1 {[%clk 0:02:56.4]} 10... a5 {[%clk 0:02:29.6]}
11. a3 {[%clk 0:02:55.7]} 11... a4 {[%clk 0:02:28.4]} 12. Nd2 {[%clk 0:02:39.1]}
12... Nd4 {[%clk 0:02:26.7]} 13. Nc4 {[%clk 0:02:31.5]} 13... Nec6 {[%clk
0:02:25.7]} 14. Be3 {[%clk 0:02:16.4]} 14... Be6 {[%clk 0:02:24.4]} 15. Bxd4
{[%clk 0:02:16.5]} 15... exd4 {[%clk 0:02:22]} 16. Ne4 {[%clk 0:02:11]} 16...
Bd5 {[%clk 0:02:17.7]} 17. f4 {[%clk 0:02:05.6]} 17... Re8 {[%clk 0:02:04.1]}
18. Ncd2 {[%clk 0:01:14.9]} 18... h6 {[%clk 0:01:57.2]} 19. Nf2 {[%clk
0:01:13.1]} 19... Bxg2 {[%clk 0:01:32.3]} 20. Rxe8+ {[%clk 0:01:11.2]} 20...
Qxe8 {[%clk 0:01:33.2]} 21. Kxg2 {[%clk 0:01:11.5]} 21... Qd7 {[%clk 0:01:31.5]}
22. Qg4 {[%clk 0:01:04.1]} 22... Qxg4 {[%clk 0:01:23]} 23. Nxg4 {[%clk
0:01:04.2]} 23... Re8 {[%clk 0:01:22.2]} 24. Kf1 {[%clk 0:00:59.7]} 24... f5
{[%clk 0:01:21.4]} 25. Nf2 {[%clk 0:00:58.9]} 25... b5 {[%clk 0:01:18.9]} 26. b3
{[%clk 0:00:50.8]} 26... Bf8 {[%clk 0:01:14.2]} 27. bxa4 {[%clk 0:00:39.5]}
27... bxa4 {[%clk 0:01:15.1]} 28. Nc4 {[%clk 0:00:36.4]} 28... Rb8 {[%clk
0:01:12.4]} 29. Rxb8 {[%clk 0:00:25.5]} 29... Nxb8 {[%clk 0:01:13.3]} 30. Nb2
{[%clk 0:00:24.7]} 30... Bxa3 {[%clk 0:01:12.5]} 31. Nxa4 {[%clk 0:00:24.9]}
31... Nd7 {[%clk 0:01:12]} 32. Nd1 {[%clk 0:00:24]} 32... Kf7 {[%clk 0:01:11.1]}
33. Ke2 {[%clk 0:00:22.1]} 33... Ke6 {[%clk 0:01:10.3]} 34. Nab2 {[%clk
0:00:21.9]} 34... Nb6 {[%clk 0:01:08.6]} 35. Nc4 {[%clk 0:00:22.1]} 35... Nxc4
{[%clk 0:00:59.7]} 36. dxc4 {[%clk 0:00:22.9]} 36... Bb4 {[%clk 0:00:59.8]} 37.
Nf2 {[%clk 0:00:21.8]} 37... Bd6 {[%clk 0:00:49.5]} 38. Nd3 {[%clk 0:00:20.8]}
38... c5 {[%clk 0:00:49.6]} 39. Kf3 {[%clk 0:00:20.4]} 39... g5 {[%clk
0:00:41.2]} 40. h3 {[%clk 0:00:10.6]} 40... Kf6 {[%clk 0:00:40.9]} 41. Nc1
{[%clk 0:00:08.2]} 41... Ke7 {[%clk 0:00:34.6]} 0-1

[Event "*** Titled Tuesday Blitz"]
[Site "Chess.com"]
[Date "2020.05.05"]
[Round "6"]
[White "Salem-AR"]
[Black "Stormeman100100"]
[Result "0-1"]
[WhiteElo "2960"]
[BlackElo "2547"]
[TimeControl "180+1"]
[EndTime "11:07:34 PDT"]
[Termination "Stormeman100100 won by resignation"]

1. d4 {[%clk 0:03:00.9]} 1... Nf6 {[%clk 0:02:58.3]} 2. c4 {[%clk 0:03:01.1]}
2... e6 {[%clk 0:02:57.4]} 3. Nf3 {[%clk 0:03:00.9]} 3... c5 {[%clk 0:02:54.2]}
4. d5 {[%clk 0:03:00.9]} 4... exd5 {[%clk 0:02:54.4]} 5. cxd5 {[%clk 0:03:01.1]}
5... d6 {[%clk 0:02:54.6]} 6. e4 {[%clk 0:03:01.6]} 6... g6 {[%clk 0:02:52.6]}
7. h3 {[%clk 0:03:01.9]} 7... Bg7 {[%clk 0:02:52.3]} 8. Bd3 {[%clk 0:03:02.4]}
8... O-O {[%clk 0:02:50.4]} 9. O-O {[%clk 0:03:03]} 9... Re8 {[%clk 0:02:46.7]}
10. Re1 {[%clk 0:03:01.8]} 10... Na6 {[%clk 0:02:39.4]} 11. Nc3 {[%clk
0:02:55.7]} 11... Nc7 {[%clk 0:02:36.3]} 12. Bf4 {[%clk 0:02:51.2]} 12... Rb8
{[%clk 0:02:12.2]} 13. a4 {[%clk 0:02:49.5]} 13... b6 {[%clk 0:01:58.7]} 14. Nd2
{[%clk 0:02:47.9]} 14... Ba6 {[%clk 0:01:57.4]} 15. Bxa6 {[%clk 0:02:32.7]}
15... Nxa6 {[%clk 0:01:58.3]} 16. Nc4 {[%clk 0:02:32.4]} 16... Bf8 {[%clk
0:01:52.8]} 17. Nb5 {[%clk 0:02:31.6]} 17... Nxe4 {[%clk 0:01:42.3]} 18. Qf3
{[%clk 0:02:28.6]} 18... f5 {[%clk 0:01:34.5]} 19. Nxa7 {[%clk 0:02:13.4]} 19...
Nb4 {[%clk 0:01:31.9]} 20. Nc6 {[%clk 0:01:54.9]} 20... Nxc6 {[%clk 0:01:31.6]}
21. dxc6 {[%clk 0:01:55.8]} 21... Qc7 {[%clk 0:01:30.6]} 22. Qb3 {[%clk
0:01:38.4]} 22... Qf7 {[%clk 0:01:17.8]} 23. Qb5 {[%clk 0:01:16.5]} 23... g5
{[%clk 0:01:02.8]} 24. Bh2 {[%clk 0:00:31.8]} 24... g4 {[%clk 0:01:02.7]} 25.
Rxe4 {[%clk 0:00:12.9]} 25... Rxe4 {[%clk 0:00:46.9]} 26. Nxd6 {[%clk
0:00:12.1]} 26... Bxd6 {[%clk 0:00:45.3]} 27. Bxd6 {[%clk 0:00:13]} 27... Rbe8
{[%clk 0:00:40]} 28. c7 {[%clk 0:00:09.3]} 28... gxh3 {[%clk 0:00:34.5]} 29. Qd3
{[%clk 0:00:04.4]} 29... hxg2 {[%clk 0:00:31.4]} 30. Bh2 {[%clk 0:00:03.9]}
30... Qg6 {[%clk 0:00:24.4]} 31. Bg3 {[%clk 0:00:03.5]} 31... f4 {[%clk
0:00:20]} 32. Qd5+ {[%clk 0:00:03.9]} 32... Kh8 {[%clk 0:00:18.5]} 33. Bxf4
{[%clk 0:00:03.4]} 33... Re1+ {[%clk 0:00:17.1]} 0-1

[Event "*** Titled Tuesday Blitz"]
[Site "Chess.com"]
[Date "2020.05.05"]
[Round "6"]
[White "AttilaTurzo"]
[Black "Susal_De_Silva"]
[Result "1-0"]
[WhiteElo "2491"]
[BlackElo "2241"]
[TimeControl "180+1"]
[EndTime "11:07:34 PDT"]
[Termination "AttilaTurzo won by resignation"]

1. e4 {[%clk 0:03:00.9]} 1... e5 {[%clk 0:02:58.9]} 2. Nf3 {[%clk 0:03:00.7]}
2... Nc6 {[%clk 0:02:59.3]} 3. d4 {[%clk 0:03:01.3]} 3... exd4 {[%clk
0:02:59.4]} 4. Nxd4 {[%clk 0:03:02.2]} 4... Qf6 {[%clk 0:02:57.3]} 5. Nb5 {[%clk
0:03:00.7]} 5... Qe5 {[%clk 0:02:46.5]} 6. Qd5 {[%clk 0:02:43.8]} 6... Bb4+
{[%clk 0:02:43.3]} 7. N1c3 {[%clk 0:02:32]} 7... Ba5 {[%clk 0:02:31.2]} 8. Bd2
{[%clk 0:02:28.9]} 8... a6 {[%clk 0:02:23.8]} 9. Qxe5+ {[%clk 0:02:19]} 9...
Nxe5 {[%clk 0:02:24.7]} 10. Nd4 {[%clk 0:02:19.4]} 10... Bb6 {[%clk 0:02:20.6]}
11. Nf5 {[%clk 0:02:14.3]} 11... g6 {[%clk 0:02:15.9]} 12. Ne3 {[%clk
0:02:10.1]} 12... Ne7 {[%clk 0:02:09.9]} 13. Ncd5 {[%clk 0:02:08.8]} 13... Bxe3
{[%clk 0:01:30.3]} 14. Bxe3 {[%clk 0:01:56.7]} 14... Nxd5 {[%clk 0:01:29.2]} 15.
exd5 {[%clk 0:01:55.7]} 15... O-O {[%clk 0:01:29.7]} 16. d6 {[%clk 0:01:52.7]}
16... c6 {[%clk 0:01:15.1]} 17. Bb6 {[%clk 0:01:46.5]} 17... Re8 {[%clk
0:00:59]} 18. O-O-O {[%clk 0:01:46.2]} 18... Ng4 {[%clk 0:00:52.9]} 19. h3
{[%clk 0:01:43.6]} 19... Nf6 {[%clk 0:00:52.1]} 20. Bc4 {[%clk 0:01:28.4]} 20...
Re4 {[%clk 0:00:51.6]} 21. b3 {[%clk 0:01:23.6]} 21... a5 {[%clk 0:00:46.2]} 22.
a4 {[%clk 0:01:19.8]} 22... Nd5 {[%clk 0:00:26.5]} 23. Bxd5 {[%clk 0:01:12.4]}
23... cxd5 {[%clk 0:00:27.4]} 24. Rxd5 {[%clk 0:01:12.6]} 24... Ra6 {[%clk
0:00:26.3]} 25. Rb5 {[%clk 0:00:57.9]} 25... Re6 {[%clk 0:00:11.1]} 26. Rd1
{[%clk 0:00:57]} 26... f6 {[%clk 0:00:11.1]} 27. c4 {[%clk 0:00:44.7]} 27... Re5
{[%clk 0:00:11]} 28. Rxe5 {[%clk 0:00:40.8]} 28... fxe5 {[%clk 0:00:11.9]} 29.
c5 {[%clk 0:00:41.1]} 29... Kf7 {[%clk 0:00:12]} 30. Kc2 {[%clk 0:00:39.9]}
30... Ke6 {[%clk 0:00:12.4]} 31. Kc3 {[%clk 0:00:40]} 31... h5 {[%clk 0:00:06]}
32. Kc4 {[%clk 0:00:38]} 32... g5 {[%clk 0:00:05.9]} 33. f3 {[%clk 0:00:35.9]}
33... Kf5 {[%clk 0:00:06.1]} 34. Kd5 {[%clk 0:00:32.1]} 34... Kf4 {[%clk
0:00:06.5]} 35. Re1 {[%clk 0:00:31.3]} 35... Kg3 {[%clk 0:00:06.9]} 36. Rxe5
{[%clk 0:00:31.3]} 36... Kxg2 {[%clk 0:00:07.3]} 37. Rxg5+ {[%clk 0:00:31.4]}
37... Kxh3 {[%clk 0:00:06.7]} 38. Rxh5+ {[%clk 0:00:31.6]} 38... Kg3 {[%clk
0:00:07.4]} 39. Rh8 {[%clk 0:00:30.2]} 39... Kxf3 {[%clk 0:00:07.5]} 40. Rxc8
{[%clk 0:00:30.6]} 1-0

[Event "*** Titled Tuesday Blitz"]
[Site "Chess.com"]
[Date "2020.05.05"]
[Round "6"]
[White "Eloist"]
[Black "Kaliopa"]
[Result "1-0"]
[WhiteElo "2241"]
[BlackElo "2089"]
[TimeControl "180+1"]
[EndTime "11:07:35 PDT"]
[Termination "Eloist won on time"]

1. e4 {[%clk 0:03:00.9]} 1... c5 {[%clk 0:02:51.9]} 2. Nf3 {[%clk 0:02:59.6]}
2... d6 {[%clk 0:02:51.2]} 3. Bb5+ {[%clk 0:02:55.8]} 3... Nd7 {[%clk
0:02:50.5]} 4. O-O {[%clk 0:02:55]} 4... Nf6 {[%clk 0:02:47.9]} 5. Re1 {[%clk
0:02:54.8]} 5... a6 {[%clk 0:02:37.4]} 6. Bf1 {[%clk 0:02:53.1]} 6... g6 {[%clk
0:02:23.9]} 7. c3 {[%clk 0:02:51.8]} 7... Bg7 {[%clk 0:02:21.3]} 8. d4 {[%clk
0:02:51.5]} 8... O-O {[%clk 0:02:12.9]} 9. a4 {[%clk 0:02:45]} 9... b6 {[%clk
0:01:54.4]} 10. Bf4 {[%clk 0:02:42.1]} 10... Bb7 {[%clk 0:01:52.1]} 11. Nbd2
{[%clk 0:02:41.3]} 11... Nh5 {[%clk 0:01:24.6]} 12. Bg5 {[%clk 0:02:36.8]} 12...
h6 {[%clk 0:01:21.9]} 13. Be3 {[%clk 0:02:35.2]} 13... Rc8 {[%clk 0:01:12.4]}
14. d5 {[%clk 0:02:09.1]} 14... e6 {[%clk 0:01:05.4]} 15. dxe6 {[%clk
0:01:53.1]} 15... fxe6 {[%clk 0:01:05.4]} 16. Nc4 {[%clk 0:01:48.7]} 16... Bxe4
{[%clk 0:00:52.9]} 17. Nfd2 {[%clk 0:01:32.6]} 17... Bd5 {[%clk 0:00:43.4]} 18.
Nxd6 {[%clk 0:01:31.8]} 18... Rc6 {[%clk 0:00:43]} 19. N6e4 {[%clk 0:01:15.4]}
19... Ndf6 {[%clk 0:00:38.9]} 20. Nxf6+ {[%clk 0:01:09.4]} 20... Nxf6 {[%clk
0:00:24]} 21. Bxa6 {[%clk 0:01:00.2]} 21... c4 {[%clk 0:00:13.8]} 22. Bb5 {[%clk
0:00:56.2]} 22... Rc8 {[%clk 0:00:13.1]} 23. Qe2 {[%clk 0:00:54.8]} 23... Qc7
{[%clk 0:00:12.3]} 24. Bd4 {[%clk 0:00:49.5]} 24... h5 {[%clk 0:00:11.8]} 25.
Be5 {[%clk 0:00:41.2]} 25... Qc5 {[%clk 0:00:06.8]} 26. Bd4 {[%clk 0:00:40.4]}
26... Qc7 {[%clk 0:00:06.1]} 27. Nf3 {[%clk 0:00:39]} 27... Ng4 {[%clk
0:00:04.2]} 28. Ne5 {[%clk 0:00:29.1]} 28... Bxe5 {[%clk 0:00:01.6]} 29. Bxe5
{[%clk 0:00:28.9]} 29... Nxe5 {[%clk 0:00:02.3]} 30. Qxe5 {[%clk 0:00:28.5]}
30... Qxe5 {[%clk 0:00:03.1]} 31. Rxe5 {[%clk 0:00:27.6]} 31... Rf6 {[%clk
0:00:02.6]} 32. f3 {[%clk 0:00:20.4]} 32... Rcf8 {[%clk 0:00:01.6]} 33. Kf2
{[%clk 0:00:19.1]} 33... h4 {[%clk 0:00:01.8]} 34. h3 {[%clk 0:00:18]} 1-0

[Event "*** Titled Tuesday Blitz"]
[Site "Chess.com"]
[Date "2020.05.05"]
[Round "6"]
[White "Yaacovn"]
[Black "SirMittensofMittensville"]
[Result "1-0"]
[WhiteElo "2864"]
[BlackElo "2667"]
[TimeControl "180+1"]
[EndTime "11:07:36 PDT"]
[Termination "Yaacovn won by resignation"]

1. d4 {[%clk 0:03:00.9]} 1... Nf6 {[%clk 0:02:59.5]} 2. Nf3 {[%clk 0:03:00.6]}
2... e6 {[%clk 0:03:00]} 3. e3 {[%clk 0:03:00.9]} 3... d5 {[%clk 0:03:00.4]} 4.
Bd3 {[%clk 0:03:01.3]} 4... c5 {[%clk 0:03:00]} 5. c3 {[%clk 0:03:01.1]} 5...
Nc6 {[%clk 0:03:00.9]} 6. Nbd2 {[%clk 0:03:01.4]} 6... b6 {[%clk 0:03:01.4]} 7.
Ne5 {[%clk 0:03:01.3]} 7... Bb7 {[%clk 0:03:00.8]} 8. f4 {[%clk 0:03:01.2]} 8...
Be7 {[%clk 0:03:00.5]} 9. O-O {[%clk 0:03:00.5]} 9... O-O {[%clk 0:03:01.1]} 10.
Qf3 {[%clk 0:03:00.7]} 10... a5 {[%clk 0:02:55.6]} 11. g4 {[%clk 0:02:59.1]}
11... Nd7 {[%clk 0:02:53.2]} 12. Qh3 {[%clk 0:02:57.4]} 12... g6 {[%clk
0:02:50.6]} 13. Qh6 {[%clk 0:02:56.9]} 13... Ndxe5 {[%clk 0:02:47.8]} 14. fxe5
{[%clk 0:02:57.1]} 14... Bg5 {[%clk 0:02:41]} 15. Qh3 {[%clk 0:02:56.5]} 15...
f5 {[%clk 0:02:15.8]} 16. Nf3 {[%clk 0:02:43.3]} 16... Be7 {[%clk 0:02:11.4]}
17. gxf5 {[%clk 0:02:42.4]} 17... exf5 {[%clk 0:02:10.7]} 18. Kh1 {[%clk
0:02:41]} 18... Qd7 {[%clk 0:02:01.9]} 19. Bd2 {[%clk 0:02:38.7]} 19... Nd8
{[%clk 0:01:50.8]} 20. Rg1 {[%clk 0:02:37.1]} 20... Ba6 {[%clk 0:01:45.7]} 21.
Bxa6 {[%clk 0:02:33.7]} 21... Rxa6 {[%clk 0:01:46.6]} 22. Be1 {[%clk 0:02:34]}
22... Ne6 {[%clk 0:01:43]} 23. Bh4 {[%clk 0:02:33.8]} 23... Ra7 {[%clk
0:01:40.4]} 24. Raf1 {[%clk 0:02:29.8]} 24... Bxh4 {[%clk 0:01:30.1]} 25. Qxh4
{[%clk 0:02:23]} 25... Qe7 {[%clk 0:01:20.8]} 26. Qh6 {[%clk 0:02:16.2]} 26...
cxd4 {[%clk 0:01:18.5]} 27. exd4 {[%clk 0:02:08]} 27... f4 {[%clk 0:01:17.6]}
28. Rg4 {[%clk 0:02:00.7]} 28... Rf5 {[%clk 0:01:15.7]} 29. Rfg1 {[%clk
0:01:57.1]} 29... Nf8 {[%clk 0:01:14.2]} 30. Rxf4 {[%clk 0:01:50.1]} 30... Qf7
{[%clk 0:01:12.3]} 31. Ng5 {[%clk 0:01:43.7]} 31... Rxf4 {[%clk 0:01:10.7]} 32.
Nxf7 {[%clk 0:01:43.4]} 32... Raxf7 {[%clk 0:01:11.6]} 33. Qh3 {[%clk
0:01:35.4]} 33... R7f5 {[%clk 0:01:09.8]} 34. Qg2 {[%clk 0:01:28.6]} 34... Re4
{[%clk 0:00:59.5]} 35. Qc2 {[%clk 0:01:24.3]} 35... Rh5 {[%clk 0:00:49.9]} 36.
Rf1 {[%clk 0:01:13.6]} 36... Ne6 {[%clk 0:00:44.3]} 37. Qb3 {[%clk 0:01:04.1]}
37... Re2 {[%clk 0:00:35.4]} 38. Qxd5 {[%clk 0:00:57.8]} 38... Rhxh2+ {[%clk
0:00:30.8]} 39. Kg1 {[%clk 0:00:57]} 39... Kg7 {[%clk 0:00:31]} 40. Qf3 {[%clk
0:00:43.4]} 40... Nf4 {[%clk 0:00:24.3]} 41. Qxe2 {[%clk 0:00:31.2]} 41... Rxe2
{[%clk 0:00:22.1]} 42. Rxf4 {[%clk 0:00:31.3]} 42... Rxb2 {[%clk 0:00:22.8]} 43.
Kf1 {[%clk 0:00:22.9]} 43... Rxa2 {[%clk 0:00:13.6]} 44. e6 {[%clk 0:00:23.1]}
44... Rd2 {[%clk 0:00:12.4]} 45. e7 {[%clk 0:00:20.6]} 1-0

[Event "*** Titled Tuesday Blitz"]
[Site "Chess.com"]
[Date "2020.05.05"]
[Round "6"]
[White "dopolian"]
[Black "Irina_Barchuk"]
[Result "0-1"]
[WhiteElo "2389"]
[BlackElo "2215"]
[TimeControl "180+1"]
[EndTime "11:07:37 PDT"]
[Termination "Irina_Barchuk won by resignation"]

1. Nf3 {[%clk 0:03:00.9]} 1... g6 {[%clk 0:02:59.3]} 2. g3 {[%clk 0:02:59]} 2...
Bg7 {[%clk 0:02:59.5]} 3. Bg2 {[%clk 0:02:59.7]} 3... Nf6 {[%clk 0:02:57.4]} 4.
O-O {[%clk 0:03:00]} 4... O-O {[%clk 0:02:57.9]} 5. d4 {[%clk 0:02:57.4]} 5...
d6 {[%clk 0:02:57.2]} 6. b3 {[%clk 0:02:55]} 6... Nc6 {[%clk 0:02:54.2]} 7. Bb2
{[%clk 0:02:55.1]} 7... e5 {[%clk 0:02:52]} 8. dxe5 {[%clk 0:02:55.2]} 8... Nd7
{[%clk 0:02:51.8]} 9. Nbd2 {[%clk 0:02:54.2]} 9... Ndxe5 {[%clk 0:02:49.7]} 10.
Nxe5 {[%clk 0:02:54.1]} 10... Nxe5 {[%clk 0:02:49.2]} 11. Rb1 {[%clk 0:02:37.6]}
11... c6 {[%clk 0:02:40.4]} 12. Nf3 {[%clk 0:02:31.2]} 12... Nxf3+ {[%clk
0:02:34.5]} 13. Bxf3 {[%clk 0:02:32.1]} 13... Bxb2 {[%clk 0:02:34.5]} 14. Rxb2
{[%clk 0:02:32.8]} 14... Qf6 {[%clk 0:02:34.5]} 15. Rb1 {[%clk 0:02:29.6]} 15...
d5 {[%clk 0:02:32.4]} 16. e3 {[%clk 0:02:21.8]} 16... Bf5 {[%clk 0:02:29.7]} 17.
Bg2 {[%clk 0:02:19.1]} 17... Be4 {[%clk 0:02:27.2]} 18. Qd2 {[%clk 0:02:15.8]}
18... Bxg2 {[%clk 0:02:25.9]} 19. Kxg2 {[%clk 0:02:16.7]} 19... h5 {[%clk
0:02:24.4]} 20. h4 {[%clk 0:02:14.1]} 20... Rfe8 {[%clk 0:02:22.7]} 21. Rbc1
{[%clk 0:02:04.1]} 21... Qb2 {[%clk 0:02:07]} 22. a4 {[%clk 0:01:50.7]} 22...
Rad8 {[%clk 0:02:00.5]} 23. Qd3 {[%clk 0:01:48]} 23... Qe5 {[%clk 0:01:52]} 24.
Rfd1 {[%clk 0:01:45.1]} 24... c5 {[%clk 0:01:43]} 25. Re1 {[%clk 0:01:32.7]}
25... Qe4+ {[%clk 0:01:40.7]} 26. Qxe4 {[%clk 0:01:32.6]} 26... dxe4 {[%clk
0:01:41.6]} 27. Red1 {[%clk 0:01:26.4]} 27... Kf8 {[%clk 0:01:41.3]} 28. Kf1
{[%clk 0:01:26.1]} 28... Ke7 {[%clk 0:01:40.1]} 29. Ke2 {[%clk 0:01:26]} 29...
c4 {[%clk 0:01:32.1]} 30. b4 {[%clk 0:01:13.7]} 30... c3 {[%clk 0:01:22.5]} 31.
Rb1 {[%clk 0:01:04.7]} 31... Rxd1 {[%clk 0:01:13.3]} 32. Rxd1 {[%clk 0:01:03.2]}
32... Rd8 {[%clk 0:01:13.9]} 33. Rxd8 {[%clk 0:00:28.9]} 33... Kxd8 {[%clk
0:01:14.8]} 34. Kd1 {[%clk 0:00:13.1]} 34... Kd7 {[%clk 0:01:13.5]} 35. Kc1
{[%clk 0:00:13.5]} 35... Kd6 {[%clk 0:01:13.6]} 36. Kb1 {[%clk 0:00:12.3]} 36...
Kd5 {[%clk 0:01:13.3]} 37. Ka2 {[%clk 0:00:12.3]} 37... Kc4 {[%clk 0:01:13.3]}
38. Ka3 {[%clk 0:00:12.3]} 38... b6 {[%clk 0:00:52.5]} 39. a5 {[%clk 0:00:04.6]}
39... b5 {[%clk 0:00:48]} 40. a6 {[%clk 0:00:02.3]} 40... f6 {[%clk 0:00:47.3]}
41. Ka2 {[%clk 0:00:01.4]} 41... Kxb4 {[%clk 0:00:46.5]} 42. Ka1 {[%clk
0:00:01.7]} 42... Ka5 {[%clk 0:00:44.1]} 43. Ka2 {[%clk 0:00:02.2]} 43... b4
{[%clk 0:00:42.3]} 44. Kb3 {[%clk 0:00:02.5]} 44... Kb5 {[%clk 0:00:42.6]} 45.
Ka2 {[%clk 0:00:01.6]} 45... Kxa6 {[%clk 0:00:42.7]} 46. Kb1 {[%clk 0:00:01.5]}
46... Kb5 {[%clk 0:00:42.6]} 47. Ka2 {[%clk 0:00:02.4]} 47... Kc4 {[%clk
0:00:42.5]} 0-1

[Event "*** Titled Tuesday Blitz"]
[Site "Chess.com"]
[Date "2020.05.05"]
[Round "6"]
[White "okriak"]
[Black "Mischuk_D"]
[Result "1-0"]
[WhiteElo "2816"]
[BlackElo "2610"]
[TimeControl "180+1"]
[EndTime "11:07:40 PDT"]
[Termination "okriak won by resignation"]

1. Nf3 {[%clk 0:03:00.9]} 1... d5 {[%clk 0:02:59.9]} 2. e3 {[%clk 0:03:00.4]}
2... c6 {[%clk 0:02:58.5]} 3. c4 {[%clk 0:03:00.5]} 3... Nf6 {[%clk 0:02:57.1]}
4. Nc3 {[%clk 0:03:00.9]} 4... e6 {[%clk 0:02:56.3]} 5. b3 {[%clk 0:03:00.9]}
5... Bd6 {[%clk 0:02:55.4]} 6. Bb2 {[%clk 0:03:01.3]} 6... Qe7 {[%clk
0:02:55.7]} 7. d4 {[%clk 0:03:00.7]} 7... Ba3 {[%clk 0:02:54.4]} 8. Qc1 {[%clk
0:03:00.4]} 8... Bxb2 {[%clk 0:02:54.4]} 9. Qxb2 {[%clk 0:03:00.9]} 9... Nbd7
{[%clk 0:02:54.9]} 10. Bd3 {[%clk 0:03:00.5]} 10... b6 {[%clk 0:02:55.2]} 11.
O-O {[%clk 0:03:00]} 11... Bb7 {[%clk 0:02:55.4]} 12. e4 {[%clk 0:03:00.2]}
12... dxe4 {[%clk 0:02:55.4]} 13. Nxe4 {[%clk 0:03:00.7]} 13... c5 {[%clk
0:02:55]} 14. d5 {[%clk 0:02:43.8]} 14... exd5 {[%clk 0:02:50.7]} 15. Nxf6+
{[%clk 0:02:43.5]} 15... Qxf6 {[%clk 0:02:45.4]} 16. Rfe1+ {[%clk 0:02:43.2]}
16... Kf8 {[%clk 0:02:43.6]} 17. Qc2 {[%clk 0:02:33.5]} 17... g6 {[%clk
0:02:34.6]} 18. cxd5 {[%clk 0:02:31.8]} 18... Bxd5 {[%clk 0:02:34.1]} 19. Be4
{[%clk 0:02:32.1]} 19... Bxe4 {[%clk 0:02:19.5]} 20. Qxe4 {[%clk 0:02:31.8]}
20... Kg7 {[%clk 0:02:19.7]} 21. Rad1 {[%clk 0:02:31.3]} 21... Rhd8 {[%clk
0:02:15]} 22. Rxd7 {[%clk 0:02:27.9]} 22... Rxd7 {[%clk 0:02:08.4]} 23. Qxa8
{[%clk 0:02:27]} 23... Qb2 {[%clk 0:02:08.5]} 24. Qe8 {[%clk 0:02:19.8]} 24...
Rd5 {[%clk 0:02:06]} 25. Qe2 {[%clk 0:02:11.9]} 25... Qc3 {[%clk 0:02:01.4]} 26.
Rd1 {[%clk 0:02:03.1]} 26... Rxd1+ {[%clk 0:02:00.2]} 27. Qxd1 {[%clk
0:02:02.6]} 27... Qb2 {[%clk 0:02:01.1]} 28. a4 {[%clk 0:02:02.2]} 28... a6
{[%clk 0:01:59.2]} 29. h4 {[%clk 0:02:00]} 29... b5 {[%clk 0:01:58.9]} 30. axb5
{[%clk 0:01:54.1]} 30... axb5 {[%clk 0:01:59.8]} 31. Qd5 {[%clk 0:01:53]} 31...
c4 {[%clk 0:01:53.8]} 32. Qd4+ {[%clk 0:01:44.8]} 32... Qxd4 {[%clk 0:01:49]}
33. Nxd4 {[%clk 0:01:45]} 33... cxb3 {[%clk 0:01:47.9]} 34. Nxb3 {[%clk
0:01:44.9]} 34... Kf6 {[%clk 0:01:48.8]} 35. Kf1 {[%clk 0:01:41.2]} 35... Ke5
{[%clk 0:01:47.5]} 36. Ke2 {[%clk 0:01:40.9]} 36... Kf4 {[%clk 0:01:47.6]} 37.
g3+ {[%clk 0:01:37.1]} 37... Kg4 {[%clk 0:01:47.7]} 38. Ke3 {[%clk 0:01:34.2]}
38... f6 {[%clk 0:01:44.5]} 39. Nc5 {[%clk 0:01:33.5]} 39... b4 {[%clk
0:01:43.8]} 40. Ne4 {[%clk 0:01:28.2]} 40... f5 {[%clk 0:01:41.2]} 41. Nc5
{[%clk 0:01:28]} 41... h6 {[%clk 0:01:39.8]} 42. Nd3 {[%clk 0:01:21.1]} 42... b3
{[%clk 0:01:37.6]} 43. Ne5+ {[%clk 0:01:21.3]} 43... Kh5 {[%clk 0:01:36.4]} 44.
Nd3 {[%clk 0:01:16.7]} 44... Kg4 {[%clk 0:01:35.2]} 45. Ne5+ {[%clk 0:01:16.2]}
45... Kh5 {[%clk 0:01:35]} 46. Nc4 {[%clk 0:01:14.1]} 46... Kg4 {[%clk
0:01:34.6]} 47. Ke2 {[%clk 0:01:13.9]} 47... f4 {[%clk 0:01:32.4]} 48. gxf4
{[%clk 0:01:11.9]} 48... Kxf4 {[%clk 0:01:32.6]} 49. f3 {[%clk 0:01:07.6]} 49...
h5 {[%clk 0:01:26.6]} 50. Kf2 {[%clk 0:01:06.9]} 50... g5 {[%clk 0:01:23.3]} 51.
hxg5 {[%clk 0:01:06.6]} 51... Kxg5 {[%clk 0:01:24.2]} 52. Nb2 {[%clk 0:01:04.9]}
52... Kf5 {[%clk 0:00:39]} 53. Nd3 {[%clk 0:01:04.3]} 53... Ke6 {[%clk
0:00:39.2]} 54. Nc5+ {[%clk 0:01:02.7]} 54... Ke5 {[%clk 0:00:31.1]} 55. Nxb3
{[%clk 0:01:03]} 55... h4 {[%clk 0:00:31.8]} 56. Kg2 {[%clk 0:00:59.8]} 56...
Kf4 {[%clk 0:00:31.5]} 57. Nd2 {[%clk 0:00:59.6]} 1-0